Cogmind - Beta 12 @@@ ROGUE MODE // 2023.04.10 @ 11:57:26 Player: ZLD1 Result: Destroyed by G-47 Trooper with Particle Gun Performance ------------- Evolutions (2) 1000 Regions Visited (6) 1200 Robots Destroyed (55) 275 Value Destroyed (1360) 1360 Prototype IDs (30) 600 Alien Tech Used (0) 0 Bonus (300) 300 TOTAL SCORE: 4735 Bonus ------- Aligned with FarCom 300 Cogmind --------- Core Integrity 0/550 Matter 204/300 Energy 150/150 System Corruption 2% Temperature Cool (9) Movement Flying (26) Location -8/Storage Parts ------- > --- POWER (1) -------- Light Angular Momentum Engine > --- PROPULSION (4) --- Improved VTOL Module Improved VTOL Module Improved VTOL Module Improved VTOL Module > --- UTILITY (4) ------ Medium Storage Unit Gravity Neutralizer Improved Signal Interpreter Utility Shielding > --- WEAPON (2) ------- Improved Assault Rifle Longsword +1 > --- INVENTORY (10) --- Aluminum Leg Carbon-fiber Leg Medium Storage Unit Advanced Weight Redist. System Improved Signal Interpreter Improved Signal Interpreter Seismic Detector Advanced Targeting Computer Advanced EMP Blaster Improved Datajack Peak State ------------ > --- POWER ------------ Light Angular Momentum Engine > --- PROPULSION ------- Improved VTOL Module Improved VTOL Module Improved VTOL Module Improved VTOL Module > --- UTILITY ---------- Medium Storage Unit Gravity Neutralizer Improved Signal Interpreter Utility Shielding > --- WEAPON ----------- Improved Assault Rifle Longsword +1 > --- INVENTORY -------- Aluminum Leg Carbon-fiber Leg Medium Storage Unit Advanced Weight Redist. System Improved Signal Interpreter Improved Signal Interpreter Seismic Detector Advanced Targeting Computer Advanced EMP Blaster Improved Datajack [Rating: 45] Favorites ----------- Power Ion Engine Engine Ion Engine Power Core Light Nuclear Core Propulsion Carbon-fiber Leg Treads Light Treads Leg Carbon-fiber Leg Flight Unit Improved VTOL Module Utility Medium Storage Unit Device Gravity Neutralizer Storage Medium Storage Unit Processor Advanced Visual Processing Unit Hackware Hacking Suite Protection Utility Shielding Weapon Assault Rifle Energy Gun Beam Rifle Ballistic Gun Assault Rifle Ballistic Cannon Assault Cannon Launcher Shock Bomb Launcher Slashing Weapon Longsword +1 Build | -11 -10 -10 -10 -9 -8 -8 ------- Run | Jun Mat Min Exi Min Mat Sto Slots Evolved 4 | . . . . . 4 . Power . | . . . . . . . Propulsion 2 | . . . . . 2 . Utility 2 | . . . . . 2 . Weapon . | . . . . . . . Parts Attached 79 | 5 13 5 . 2 19 35 Power 15 | 1 5 1 . . 4 4 Engine 13 | 1 5 1 . . 3 3 Core 2 | . . . . . 1 1 Reactor . | . . . . . . . Propulsion 24 | 2 3 2 . . 4 13 Treads 3 | . . . . . 1 2 Leg 13 | 2 3 2 . . 3 3 Wheel . | . . . . . . . Hover . | . . . . . . . Flight 8 | . . . . . . 8 Utility 16 | . 3 . . 1 4 8 Device 4 | . . . . . . 4 Storage 3 | . 2 . . . . 1 Processor 3 | . . . . 1 2 . Hackware 1 | . . . . . 1 . Protection 5 | . 1 . . . 1 3 Artifact . | . . . . . . . Weapon 24 | 2 2 2 . 1 7 10 Energy Gun 3 | . . . . . 1 2 Energy Cannon . | . . . . . . . Ballistic Gun 12 | 2 2 2 . . 1 5 Ballistic Cannon 4 | . . . . 1 3 . Launcher 3 | . . . . . 1 2 Special Weapon . | . . . . . . . Impact Weapon . | . . . . . . . Slashing Weapon 2 | . . . . . 1 1 Piercing Weapon . | . . . . . . . Special Melee Weapon . | . . . . . . . Unidentified Prototypes 7 | . . . . . 1 6 Parts Lost 19 | . . 3 . . 10 6 Power 4 | . . 1 . . 3 . Propulsion 7 | . . . . . 4 3 Utility 1 | . . . . . 1 . Weapon 7 | . . 2 . . 2 3 Highest Loss Streak 8 | . . 1 . . 8 3 To Critical Strikes . | . . . . . . . Average Slot Usage (%) 88 | . 83 99 100 100 73 89 Engine 11 | . 13 13 14 14 7 8 Treads 3 | . . . . . 1 14 Leg 20 | . 26 28 28 28 15 8 Flight 1 | . . . . . . 5 Device 1 | . . . . . . 6 Storage 11 | . 12 14 14 14 9 9 Processor 6 | . . . . . 12 16 Protection 8 | . 2 14 14 13 9 3 Ballistic Gun 17 | . 27 27 28 25 5 6 Ballistic Cannon 2 | . . . . 2 8 1 Slashing Weapon 1 | . . . . . . 5 Naked Turns . | . . . . . . . Heaviest Build 31 | 7 19 20 19 26 31 26 Greatest Support 72 | 20 20 30 30 30 60 72 Greatest Overweight (x) 7 | . 4 . . . 7 6 Average Overweight (x) . | . . . . . . . Largest Inventory Capacity 10 | 5 10 10 10 10 10 10 Average Capacity 9 | 5 8 10 10 10 10 10 Most Carried 10 | 5 10 10 10 10 10 10 Average Carried 9 | 3 7 9 10 10 9 9 Final Capacity 10 | 5 10 10 10 10 10 10 Final Carried 10 | 5 9 10 10 10 10 10 Class Distribution -------------------- 83% | Mutant 11% | Scavenger-Mutant 4% | Sprinter Dominant Class ---------------- Mutant | -10/Materials Mutant | -10/Mines Mutant | -10/Exiles Mutant | -9/Mines Mutant | -8/Materials Mutant | -8/Storage Resources | -11 -10 -10 -10 -9 -8 -8 ----------- Run | Jun Mat Min Exi Min Mat Sto Matter Collected 1687 | 193 310 286 . . 479 419 Remotely . | . . . . . . . Salvage Created 1733 | 107 302 178 . . 558 588 Parts 117 | 18 27 5 . . 35 32 Haulers Intercepted 1 | . . . . . 1 . Recyclers Shooed 1 | . . 1 . . . . Parts Field Recycled . | . . . . . . . Retrieved Matter . | . . . . . . . Parts Self-Destructed . | . . . . . . . Prevented . | . . . . . . . Kills | -11 -10 -10 -10 -9 -8 -8 ------- Run | Jun Mat Min Exi Min Mat Sto Combat Hostiles Destroyed 38 | . 9 4 . . 15 10 Melee 7 | . . . . . 2 5 Guns 24 | . 9 4 . . 6 5 Cannons 5 | . . . . . 5 . AOE 2 | . . . . . 2 . Classes Destroyed 12 | 1 5 . . . 5 1 Worker 5 | . 1 . . . 2 2 Builder 2 | . . . . . 1 1 Tunneler 5 | 5 . . . . . . Hauler 1 | . . . . . 1 . Recycler 1 | . . . . . 1 . Operator 2 | . 2 . . . . . Watcher 1 | . 1 . . . . . Swarmer 14 | . 6 . . . 8 . Grunt 17 | . 3 4 . . 4 6 Duelist 1 | . . . . . 1 . Sentry 5 | . . . . . 2 3 Hunter 1 | . . . . . . 1 Best Kill Streak 5 | 2 5 2 . . 5 3 Combat Bots Only 5 | . 3 2 . . 5 3 Max Kills in Single Turn 2 | 1 2 1 . . 2 1 Gunslinging . | . . . . . . . Exploded 2 | . . . . . 2 . Melee 1 | . . . . . 1 1 Uniques/NPCs Destroyed . | . . . . . . . Combat | -11 -10 -10 -10 -9 -8 -8 -------- Run | Jun Mat Min Exi Min Mat Sto Damage Taken 3421 | . 305 455 . . 1624 1037 Core 705 | . 73 80 . . 407 145 Absorbed by Shields . | . . . . . . . Redirected to Shielding 40 | . . . . . 36 4 Regen/Repaired (Parts) 36 | . . . . . . 36 Core Remaining (%) 69 | 100 . . . 38 . . Volleys Fired 169 | 8 40 21 . . 47 53 Largest 2 | 2 2 2 . . 2 2 Hottest 101 | 40 40 40 . . 101 81 Shots Fired 281 | 16 80 35 . . 90 60 Gun 220 | 16 80 35 . . 32 57 Cannon 56 | . . . . . 55 1 Launcher 5 | . . . . . 3 2 Special . | . . . . . . . Kinetic 249 | 16 80 35 . . 87 31 Thermal 27 | . . . . . . 27 Explosive . | . . . . . . . Electromagnetic 5 | . . . . . 3 2 Robot Hit Streak 13 | 3 11 5 . . 12 13 Robot Miss Streak 6 | 2 6 2 . . 4 3 Penetration Max . | . . . . . . . Secondary Targets 2 | . 2 . . . . . Max Gunslinging Chain 1 | . 1 . . . . . Shots Hit Robots 170 | 8 43 19 . . 51 49 Core Hits 85 | 5 19 11 . . 30 20 Critical Kills 2 | . 2 . . . . . Critical Parts Destroyed 3 | . . . . . 3 . Critical Strikes 11 | . 2 . . . 5 4 Burn 4 | . . . . . . 4 Destroy 6 | . 2 . . . 4 . Blast 1 | . . . . . 1 . Melee Attacks 17 | . . . . . 2 15 Impact . | . . . . . . . Slashing 17 | . . . . . 2 15 Piercing . | . . . . . . . Sneak Attacks 1 | . . . . . . 1 Combat Hostiles . | . . . . . . . Follow-up Attacks . | . . . . . . . Damage Inflicted 3312 | 104 551 282 . . 1151 1224 Guns 1734 | 104 542 277 . . 198 613 Cannons 722 | . . . . . 722 . Explosions 227 | . . . . . 142 85 Melee 602 | . . . . . 88 514 Ramming 27 | . 9 5 . . 1 12 Kinetic 2224 | 104 542 277 . . 920 381 Thermal 232 | . . . . . . 232 Explosive . | . . . . . . . Electromagnetic 227 | . . . . . 142 85 Impact . | . . . . . . . Slashing 602 | . . . . . 88 514 Piercing . | . . . . . . . Highest Corruption 2 | . . . . . . 2 Average Corruption 1 | . . . . . . 1 Corruption Purged . | . . . . . . . Corruption Blocked . | . . . . . . . Effects 10 | . . . . . . 10 Message Errors 2 | . . . . . . 2 Matter Fused 5 | . . . . . . 5 Heat Flow Errors 2 | . . . . . . 2 Energy Discharges 1 | . . . . . . 1 Overload Shots . | . . . . . . . Overflow Damage 108 | . . . . . 6 102 Projectiles 6 | . . . . . 6 . Explosions . | . . . . . . . Melee 102 | . . . . . . 102 Knockbacks 16 | . 1 . . . 15 . Impact 1 | . 1 . . . . . Kinetic 13 | . . . . . 13 . Secondary 2 | . . . . . 2 . Self-Inflicted Damage 20 | . . . . . 20 . Shots 1 | . . . . . 1 . Rammed 3 | . . . . . 1 2 Targets Rammed 9 | . 2 4 . . 1 2 Kicked 6 | . 2 4 . . . . Crushed . | . . . . . . . Highest Temperature 322 | . . 10 . . 322 245 Average Temperature 81 | . . 5 . . 96 66 Received Heat Transfer 1158 | . 78 108 . . 594 378 Effects 2 | . . . . . . 2 Interference 2 | . . . . . . 2 Siege Activations . | . . . . . . . Robots Corrupted . | . . . . . . . Combat Hostiles . | . . . . . . . Parts Fried . | . . . . . . . Impact Corruptions . | . . . . . . . Robots Melted . | . . . . . . . Combat Hostiles . | . . . . . . . Parts Melted 2 | . . . . . . 2 Heat Transferred 888 | . . . . . . 888 Parts Sabotaged . | . . . . . . . Parts Stolen . | . . . . . . . Parts Stripped . | . . . . . . . Power Chain Reactions . | . . . . . . . Missiles Intercepted . | . . . . . . . Alert | -11 -10 -10 -10 -9 -8 -8 ------- Run | Jun Mat Min Exi Min Mat Sto Peak Influence 242 | 25 207 159 . . 242 145 Initial 58 | . 16 49 . . . 58 Average 70 | 10 116 74 . . 63 84 Maximum Alert Level 1 | . 1 . . . 1 . Low Security (%) 96 | 100 95 100 . 100 90 100 Level 1 3 | . 4 . . . 9 . Level 2 . | . . . . . . . Level 3 . | . . . . . . . Level 4 . | . . . . . . . Level 5 . | . . . . . . . High Security . | . . . . . . . Max Security . | . . . . . . . Squads Dispatched 6 | . 2 . . . 1 3 Investigation 3 | . 1 . . . 1 1 Extermination . | . . . . . . . Reinforcement 1 | . 1 . . . . . Assault . | . . . . . . . Garrison 2 | . . . . . . 2 Intercept . | . . . . . . . Searches Triggered . | . . . . . . . Construction Impeded . | . . . . . . . Haulers Reinforced . | . . . . . . . Active Scanning Responses . | . . . . . . . Cargo Convoy Interrupts . | . . . . . . . Stealth | -11 -10 -10 -10 -9 -8 -8 --------- Run | Jun Mat Min Exi Min Mat Sto Distress Signals 9 | . 2 . . . 4 3 Communications Jammed . | . . . . . . . Distress Signals . | . . . . . . . Times Spotted 73 | . 18 6 . . 30 19 Peak Tracking Total 8 | . 5 2 . . 8 4 Tactical Retreats 5 | . 1 1 . . 1 2 Traps | -11 -10 -10 -10 -9 -8 -8 ------- Run | Jun Mat Min Exi Min Mat Sto Traps Triggered 7 | . 4 . . . . 3 Indirectly . | . . . . . . . Trap Hack Attempts . | . . . . . . . Triggered . | . . . . . . . Disarmed . | . . . . . . . Reprogrammed . | . . . . . . . Reused . | . . . . . . . Traps Extracted . | . . . . . . . Installed . | . . . . . . . Triggered . | . . . . . . . Machines | -11 -10 -10 -10 -9 -8 -8 ---------- Run | Jun Mat Min Exi Min Mat Sto Machines Disabled 5 | . . . . . 1 4 Max in Single Turn 1 | . . . . . 1 1 Machines Repaired . | . . . . . . . Machines Sabotaged . | . . . . . . . Overloaded Fab Kills . | . . . . . . . Hacking | -11 -10 -10 -10 -9 -8 -8 --------- Run | Jun Mat Min Exi Min Mat Sto Machines Accessed 8 | . 2 . 1 . 2 3 Terminals 6 | . 2 . . . 2 2 Fabricators . | . . . . . . . Repair Stations 1 | . . . . . . 1 Recycling Units . | . . . . . . . Scanalyzers . | . . . . . . . Garrison Access . | . . . . . . . Total Hacks 17 | . 7 . 1 . 4 5 Successful 9 | . 3 . 1 . 1 4 Failed 8 | . 4 . . . 3 1 Catastrophic 2 | . 2 . . . . . Database Lockouts . | . . . . . . . Manual 3 | . . . 3 . . . Terminals 13 | . 7 . . . 4 2 Fabricators . | . . . . . . . Repair Stations 3 | . . . . . . 3 Recycling Units . | . . . . . . . Scanalyzers . | . . . . . . . Garrison Access . | . . . . . . . Terminal Hacks 7 | . 3 . 1 . 1 2 Open Door 2 | . . . . . . 2 Registered Components 1 | . 1 . . . . . Registered Prototypes 1 | . 1 . . . . . Zone Layout 2 | . 1 . . . 1 . EX-Prototype ID Bank 1 | . . . 1 . . . Fabricator Hacks . | . . . . . . . Repair Station Hacks 2 | . . . . . . 2 Scan Component 1 | . . . . . . 1 Repair 1 | . . . . . . 1 Recycling Unit Hacks . | . . . . . . . Scanalyzer . | . . . . . . . Garrison Access Hacks . | . . . . . . . Unauthorized Hacks . | . . . . . . . Terminals . | . . . . . . . Fabricators . | . . . . . . . Repair Stations . | . . . . . . . Recycling Units . | . . . . . . . Scanalyzers . | . . . . . . . Garrison Access . | . . . . . . . Data Cores Recovered 1 | . 1 . . . . . Used 1 | . 1 . . . . . Hacking Detections 5 | . 1 . . . 2 2 Full Trace Events . | . . . . . . . Feedback Events . | . . . . . . . Feedback Blocked . | . . . . . . . Robot Schematics Acquired . | . . . . . . . Robots Built . | . . . . . . . Authchips . | . . . . . . . Time . | . . . . . . . Total Robot Build Rating . | . . . . . . . Part Schematics Acquired . | . . . . . . . Parts Built . | . . . . . . . Authchips . | . . . . . . . Time . | . . . . . . . Total Part Build Rating . | . . . . . . . Parts Repaired 1 | . . . . . . 1 Time 26 | . . . . . . 26 Parts Recycled . | . . . . . . . Recycled Matter . | . . . . . . . Retrieved Matter . | . . . . . . . Retrieved Components . | . . . . . . . Parts Scanalyzed . | . . . . . . . Part Schematics Acquired . | . . . . . . . Parts Damaged . | . . . . . . . Bothacking | -11 -10 -10 -10 -9 -8 -8 ------------ Run | Jun Mat Min Exi Min Mat Sto Used RIF Installer . | . . . . . . . Robots Hacked . | . . . . . . . Non-combat . | . . . . . . . Combat . | . . . . . . . Robot Hacks Applied . | . . . . . . . Relay Couplers Released . | . . . . . . . Fabnet Peak Effective % . | . . . . . . . Robots Rewired . | . . . . . . . Allies Hacked . | . . . . . . . Hacks Repelled . | . . . . . . . Allies | -11 -10 -10 -10 -9 -8 -8 -------- Run | Jun Mat Min Exi Min Mat Sto Total Allies . | . . . . . . . Largest Group . | . . . . . . . Highest-Rated Group . | . . . . . . . Highest-Rated Ally . | . . . . . . . Total Orders . | . . . . . . . Ally Attacks . | . . . . . . . Total Damage . | . . . . . . . Kills . | . . . . . . . Allies Corrupted . | . . . . . . . Allies Melted . | . . . . . . . Intel | -11 -10 -10 -10 -9 -8 -8 ------- Run | Jun Mat Min Exi Min Mat Sto Robot Analysis Total . | . . . . . . . Derelict Logs Recovered 3 | . . 2 . 1 . . Drone Launches . | . . . . . . . Drone Recoveries . | . . . . . . . Exploration | -11 -10 -10 -10 -9 -8 -8 ------------- Run | Jun Mat Min Exi Min Mat Sto Turns Passed 4252 | 125 680 750 261 501 969 966 Spaces Moved 2597 | 82 406 553 217 415 449 475 Core 43 | 17 6 . . . 16 4 Treads 302 | . . . . . 56 246 Legs 2148 | 65 400 553 217 415 377 121 Wheels . | . . . . . . . Hover . | . . . . . . . Flight 104 | . . . . . . 104 Fastest Speed 26 | 50 120 120 120 120 120 26 Average Speed 130 | 105 126 120 120 120 169 127 Slowest Speed 400 | 120 250 120 120 120 400 350 Overloaded Moves . | . . . . . . . Propulsion Burnouts . | . . . . . . . Robots Hopped 1 | . . . . . . 1 Cave-ins Triggered . | . . . . . . . Exploration Rate (%) 52 | 4 78 69 61 82 32 43 Regions Visited 6 Branch Regions 4 Pre-discovered Areas 2 | . . 2 . . . . Known Exits Taken 2 | . . . . 1 1 . Unknown Exits Taken 4 | 1 1 1 1 . . . Scrap Searched 3 | . . . . 3 . . Spaces Dug . | . . . . . . . Terrain Destroyed 15 | . . . . . 15 . Melee . | . . . . . . . Projectile 15 | . . . . . 15 . AOE . | . . . . . . . Terrain Rammed . | . . . . . . . Walls Destroyed . | . . . . . . . Machines Disabled . | . . . . . . . Actions | -11 -10 -10 -10 -9 -8 -8 --------- Run | Jun Mat Min Exi Min Mat Sto Total 3166 | 104 490 604 218 417 570 763 Wait 211 | . 18 13 . . 33 147 Move 2589 | 81 405 552 216 414 448 473 Hop 1 | . . . . . . 1 Pick Up 46 | 10 8 6 1 . 11 10 Fast Attach 39 | . 7 . . 1 8 23 Attach 25 | 5 3 3 . . 9 5 Detach 3 | . . . . . 2 1 Swap 15 | . 3 2 . 1 2 7 Drop 42 | . 4 3 1 1 7 26 Fire 169 | 8 40 21 . . 47 53 Melee 17 | . . . . . 2 15 Ram 1 | . . . . . 1 . Kick 6 | . 2 4 . . . . Crush 2 | . . . . . . 2 Escape Stasis . | . . . . . . . Rewire . | . . . . . . . Trap . | . . . . . . . Miscellaneous . | . . . . . . . Route ------- -11/Junkyard -10/Materials (discovered 3 exits: [*Mat x2] / [*Min]) -10/Mines (discovered 2 exits: [*Mat] / *Exi) -10/Exiles -9/Mines -8/Materials -8/Storage History --------- Turn | Location | Event 3 | -11/Junkyard | Discovered new exit (range 15) 126 | -11/Junkyard | Entered Materials 315 | -10/Materials | Build established: Mutant 319 | -10/Materials | Discovered new exit (range 4) 565 | -10/Materials | Discovered new exit (range 10) 778 | -10/Materials | Discovered new exit (range 8) 806 | -10/Materials | Entered Mines 836 | -10/Mines | Met a Derelict bent on vengeance 976 | -10/Mines | Learned location of Storage (-8) 997 | -10/Mines | Found a hidden stash of uninstalled traps 1079 | -10/Mines | Assembled infested the area 1480 | -10/Mines | Core integrity fell below 50% 1515 | -10/Mines | Discovered new exit (range 9) 1550 | -10/Mines | Deemed a non-threat by the Exiles lab entrance 1551 | -10/Mines | Discovered new exit (range 5) 1556 | -10/Mines | Entered Exiles 1584 | -10/Exiles | Met 8R-AWN 1606 | -10/Exiles | Met EX-HEX 1640 | -10/Exiles | Met EX-BIN 1660 | -10/Exiles | Aligned with FarCom system 1661 | -10/Exiles | Given EX-Vault access code 1688 | -10/Exiles | Opened EX-Vault 1696 | -10/Exiles | Found Longsword +1 1722 | -10/Exiles | Warned to stay clear of 0b10 Research branches 1754 | -10/Exiles | Met EX-DEC 1800 | -10/Exiles | Discovered new exit (range 15) 1817 | -10/Exiles | Left Exiles lab with Longsword +1 1817 | -10/Exiles | Entered Mines 2105 | -9/Mines | Found a damaged Exp. Sensor Array with a note attached 2207 | -9/Mines | A weapon hastily lodged in a ceiling crevice suddenly fell to the ground 2309 | -9/Mines | Discovered new exit (range 6) 2317 | -9/Mines | Identified exit to Materials 2318 | -9/Mines | Entered Materials 2318 | -8/Materials | Evolved 4 slots: Propulsion x2, Utility x2 2319 | -8/Materials | Identified exit to Storage 2604 | -8/Materials | Build established: Scavenger-Mutant 2639 | -8/Materials | Core integrity fell below 50% 2675 | -8/Materials | Lost 8 parts (2p3n1u2w) 2942 | -8/Materials | Build established: Mutant 3287 | -8/Materials | Entered Storage 3441 | -8/Storage | Core integrity fell below 20% 3722 | -8/Storage | Lost 3 parts (1n2w) 4005 | -8/Storage | Repaired Utility Shielding 4152 | -8/Storage | Garrison activated, responded to threat 4253 | -8/Storage | Destroyed by G-47 Trooper with Particle Gun Last Messages --------------- 04142_ G-47 Trooper destroyed. 04144_ G-50 Soldier destroyed. 04145_ Acquired 69 matter. 04152_ Destroyed Aluminum Leg. 04152_ G-47 Trooper calls for garrison reinforcements. 04152_ ALERT: Activating Garrison Access S001. 04154_ G-47 Trooper destroyed. 04155_ Acquired 53 matter. 04156_ Dropped Lgt. Ion Engine. 04158_ Dropped Lgt. Angular Momentum Engine. 04158_ Acquired Lgt. Nuclear Core. 04162_ Dropped Lgt. Nuclear Core. 04165_ System corrupted: Heat flow error (+185). 04188_ Dropped Imp. Assault Rifle. 04189_ Acquired Prototype Energy Gun. 04189_ Identified Imp. Medium Laser. 04190_ Dropped Imp. Medium Laser. 04191_ Acquired Imp. Assault Rifle. 04201_ K-01 Serf collects debris. 04250_ Y-45 Defender destroyed. Map ----- +----------------------------------------------------+ | | | | | | | | | | | | | | | | | | | | | | | ?????????????????????????????????????????????????? | | ?????????????????????????????????????????????????? | | ?????????????????????????????????????????????????? | | ??????????????????????????????????????????????#### | | ??????????????????????????????????????????????#== | | ??????????????????##########??????????????????# | | ??????????????????# #???####????###????# | | ??????????????????# #???# ???? #????# | | ??????????????????# " """ #???# """" #????### | | ??????????????????# "[][" #???# " " #?????#T | | ??????????????????# """"" #???# "=="=#?????## | | ??????????????????# """"" #???# "!! =#??????## | | ??????????????????# "*[*"!!#???# "!!" #??????# | | ?????????s????????# "" ""**#???# """" ######## | | ????????????s?????# * g@%#???# + | | ?????????????????######+##+#########+###+######## | | ???????????? w !%= [ #??????# | | ???????????? ^! #??????# | | ???????????? #??????# | | ?????????????+##########+########+###+##+######## | | ???????????????????????# ?????? ????# # | | ???????????????????????T ?????? ????#""" # | | ??????????????????????##""????? ???#""" # | | ??????????Y???????????????????? ???#""" # | | ??????????????????????????????""" """??# # | | ??????????????????????????????""" """??#""" # | | ????????????????????????????? """ """ ?#""" / | | ????????????????????????????? ?#""" # | | ????????????????????????????????T"#Y???# # | | ????????????????????????????????##?????########## | | ?????????????????????????????????????????????#""" | | ?????????????????????????????????????????????#"R | | ?????????????????????????????????????????????#""" | | ???????????????????????????????????? ??????#### | | ???????????????????????????????????? ?????????# | | ???????????????????????????????????# ?????????# | | ???????????????????????????????????# ?????????# | | ???????????????????????????????????# "????????# | | ???????????????????????????????????# T????????# | +----------------------------------------------------+ Best States ------------- Heat Dissipation 31 Energy Generation 18 Energy Capacity 265 Matter Stores 300 Matter Capacity 300 Sight Range 20 Terrain Scan Density 10 Additional Mass Support 12 Utility Shielding 33 Evasion (%) 64 Recoil Reduction 3 Offensive Hacking 10 Item Schematics ----------------- None Robot Schematics ------------------ None Fabricated ------------ Nothing Alien Tech Used ----------------- None Achievements -------------- None Challenges ------------ None Game ------ Seed SegregatorDroneCompressor Manual? 0 Play Time 00:42:03 Cumulative 30.6 hours Start 2023.04.09 @ 19:11:48 End 2023.04.10 @ 11:57:26 Sessions 1 Manual Loads 0 Difficulty Rogue Special Mode None Game No. 66 Rogue 66 Adventurer 0 Explorer 0 Win Type - Total 0 Types 0/0/0/0/0/0/0/0/0 Lore% 24 Gallery% 34 Achievement% 26 Wizard Run 0 Options --------- ASCII 0 Keyboard 0 Movement Mouse Keybinds 0 Fullscreen 1 Font 24/Smallcaps Map View 64x52 Tactical HUD 1 Map Filters NONE Filters NONE Steam 1 RUN: 3bf00ad6-435b-429b-8fa0-898ac96263bb